[Event "Catalan University-ch 2024"]
[Site "Barcelona"]
[Date "2024.02.24"]
[Round "2.6"]
[White "Catala Ulied, Guillem"]
[Black "Ros Alonso, Joana"]
[Result "0-1"]
[ECO "A08"]
[WhiteElo "1892"]
[BlackElo "2033"]
[Annotator "NA RC"]
[PlyCount "66"]
[EventDate "2024.02.24"]
[EventCountry "ESP"]
[SourceTitle "playchess.com"]
[Source "ChessBase"]
[SourceQuality "1"]
[TimeControl "600+2"]

1. e4 {[%emt 0:00:03]} e6 {[%emt 0:00:01]} 2. Qe2 {[%emt 0:00:09]} Ne7 {[%emt 0:00:02]} 3. Nf3 {[%emt 0:00:03]} d5 {[%emt 0:00:02]} 4. d3 {[%emt 0:00:04]} c5 {[%emt 0:00:03]} 5. g3 {[%emt 0:00:06]} Nbc6 {[%emt 0:00:01]} 6. Bg2 {[%emt 0:00:03]} g6 {[%emt 0:00:02]} 7. O-O {[%emt 0:00:06]} Bg7 {[%emt 0:00:02]} 8. Nbd2 {[%emt 0:00:06]} b6 {[%emt 0:00:03]} 9. Re1 {[%emt 0:00:07]} Bb7 {[%emt 0:00:23]} 10. e5 {[%emt 0:00:32]} Qc7 {[%emt 0:00:03]} 11. Nf1 {[%emt 0:00:07]} h6 {[%emt 0:00:33]} 12. h4 {[%emt 0:00:09]} b5 {[%emt 0:00:38]} 13. Bf4 {[%emt 0:00:22]} Nf5 {[%emt 0:00:36]} 14. c3 {[%emt 0:01:28]} d4 {[%emt 0:00:14]} 15. N1d2 {[%emt 0:00:28]} Rd8 {[%emt 0:00:21]} 16. c4 {[%emt 0:00:10]} Nb4 {[%emt 0:00:18]} 17. Rac1 {[%emt 0:01:27]} bxc4 {[%emt 0:02:20]} 18. Nxc4 {[%emt 0:00:16]} O-O {[%emt 0:00:19]} 19. a3 {[%emt 0:00:07]} Nd5 {[%emt 0:00:02]} 20. Qd2 {[%emt 0:00:15]} Nxf4 {[%emt 0:00:13]} 21. Qxf4 {[%emt 0:00:05]} Bd5 {[%emt 0:00:18]} 22. g4 {[%emt 0:00:40]} Bxf3 {[%emt 0:00:37]} 23. Bxf3 {[%emt 0:00:05]} Nxh4 {[%emt 0:00:05]} 24. Nd6 {[%emt 0:00:11]} g5 {[%emt 0:01:19]} 25. Qg3 {[%emt 0:00:25]} Bxe5 {[%emt 0:00:14]} 26. Rxe5 {[%emt 0:00:10]} Qxd6 {[%emt 0:00:04]} 27. Be4 {[%emt 0:00:55]} f5 {[%emt 0:00:37]} 28. gxf5 {[%emt 0:00:40]} exf5 {[%emt 0:00:18]} 29. Bg2 {[%emt 0:00:54]} Nxg2 {[%emt 0:00:42]} 30. Kxg2 {[%emt 0:00:03]} f4 {[%emt 0:00:02]} 31. Rxg5+ {[%emt 0:00:34]} hxg5 {[%emt 0:00:01]} 32. Qxg5+ {[%emt 0:00:02]} Kf7 {[%emt 0:00:02]} 33. Qh5+ {[%emt 0:00:10]} Qg6+ {[%emt 0:00:02]} 0-1

[Event "Catalan University-ch 2024"]
[Site "Barcelona"]
[Date "2024.02.24"]
[Round "2.7"]
[White "Martinez Lopez, Carlos"]
[Black "Camprubi Juanola, Jaume"]
[Result "1-0"]
[ECO "A08"]
[WhiteElo "2006"]
[BlackElo "1654"]
[Annotator "NA RC"]
[PlyCount "64"]
[EventDate "2024.02.24"]
[EventCountry "ESP"]
[SourceTitle "playchess.com"]
[Source "ChessBase"]
[SourceQuality "1"]
[TimeControl "600+2"]

1. e4 {[%emt 0:00:03]} e6 {[%emt 0:00:01]} 2. Qe2 {[%emt 0:00:09]} Ne7 {[%emt 0:00:02]} 3. Nf3 {[%emt 0:00:03]} d5 {[%emt 0:00:02]} 4. d3 {[%emt 0:00:04]} c5 {[%emt 0:00:03]} 5. g3 {[%emt 0:00:06]} Nbc6 {[%emt 0:00:01]} 6. Bg2 {[%emt 0:00:03]} g6 {[%emt 0:00:02]} 7. O-O {[%emt 0:00:06]} Bg7 {[%emt 0:00:02]} 8. Nbd2 {[%emt 0:00:06]} b6 {[%emt 0:00:03]} 9. Re1 {[%emt 0:00:07]} Bb7 {[%emt 0:00:23]} 10. e5 {[%emt 0:00:32]} Qc7 {[%emt 0:00:03]} 11. Nf1 {[%emt 0:00:07]} h6 {[%emt 0:00:33]} 12. h4 {[%emt 0:00:09]} b5 {[%emt 0:00:38]} 13. Bf4 {[%emt 0:00:22]} Nf5 {[%emt 0:00:36]} 14. c3 {[%emt 0:01:28]} d4 {[%emt 0:00:14]} 15. N1d2 {[%emt 0:00:28]} Rd8 {[%emt 0:00:21]} 16. c4 {[%emt 0:00:10]} Nb4 {[%emt 0:00:18]} 17. Rac1 {[%emt 0:01:27]} bxc4 {[%emt 0:02:20]} 18. Nxc4 {[%emt 0:00:16]} O-O {[%emt 0:00:19]} 19. a3 {[%emt 0:00:07]} Nd5 {[%emt 0:00:02]} 20. Qd2 {[%emt 0:00:15]} Nxf4 {[%emt 0:00:13]} 21. Qxf4 {[%emt 0:00:05]} Bd5 {[%emt 0:00:18]} 22. g4 {[%emt 0:00:40]} Bxf3 {[%emt 0:00:37]} 23. Bxf3 {[%emt 0:00:05]} Nxh4 {[%emt 0:00:05]} 24. Nd6 {[%emt 0:00:11]} g5 {[%emt 0:01:19]} 25. Qg3 {[%emt 0:00:25]} Bxe5 {[%emt 0:00:14]} 26. Rxe5 {[%emt 0:00:10]} Qxd6 {[%emt 0:00:04]} 27. Be4 {[%emt 0:00:55]} f5 {[%emt 0:00:37]} 28. gxf5 {[%emt 0:00:40]} exf5 {[%emt 0:00:18]} 29. Bg2 {[%emt 0:00:54]} Nxg2 {[%emt 0:00:42]} 30. Kxg2 {[%emt 0:00:03]} f4 {[%emt 0:00:02]} 31. Rxg5+ {[%emt 0:00:34]} hxg5 {[%emt 0:00:01]} 32. Qxg5+ {[%emt 0:00:02]} Kf7 {[%emt 0:00:02]} 1-0

[Event "Catalan University-ch 2024"]
[Site "Barcelona"]
[Date "2024.02.24"]
[Round "2.8"]
[White "Martinez Lopez, Carlos"]
[Black "Camprubi Juanola, Jaume"]
[Result "1-0"]
[ECO "B38"]
[WhiteElo "2006"]
[BlackElo "1654"]
[Annotator "COMBH"]
[PlyCount "75"]
[EventDate "2024.02.24"]
[EventCountry "ESP"]
[SourceTitle "playchess.com"]
[Source "ChessBase"]
[SourceQuality "1"]
[TimeControl "5400+30"]

1. e4 {[%emt 1:20:58]} c5 {[%emt 1:20:57]} 2. Nf3 {[%emt 0:00:29]} g6 {[%emt 0:00:29]} 3. d4 {[%emt 0:00:30]} cxd4 {[%emt 0:00:30]} 4. Nxd4 {[%emt 0:00:29]} Bg7 {[%emt 0:00:29]} 5. c4 {[%emt 0:00:30]} Nc6 {[%emt 0:00:31]} 6. Be3 {[%emt 0:00:29]} Nf6 {[%emt 0:00:36]} 7. Nc3 {[%emt 0:00:32]} d6 {[%emt 0:00:31]} 8. Be2 {[%emt 0:00:33]} O-O {[%emt 0:00:32]} 9. O-O {[%emt 0:00:40]} a6 {[%emt 0:00:58]} 10. h3 {[%emt 0:00:49]} Bd7 {[%emt 0:00:57]} 11. Qd2 {[%emt 0:00:32]} Rc8 {[%emt 0:01:19]} 12. Rac1 {[%emt 0:00:46]} Qa5 {[%emt 0:01:04]} 13. Nb3 {[%emt 0:00:42]} Qc7 {[%emt 0:01:08]} 14. Bg5 {[%emt 0:00:33]} Ne5 {[%emt 0:00:49]} 15. Bxf6 {[%emt 0:00:45]} Bxf6 {[%emt 0:00:34]} 16. Nd5 {[%emt 0:00:29]} Qb8 {[%emt 0:01:34]} 17. f4 {[%emt 0:00:56]} Nc6 {[%emt 0:00:58]} 18. Nxf6+ {[%emt 0:00:40]} exf6 {[%emt 0:00:30]} 19. Rfd1 {[%emt 0:00:34]} Rfe8 {[%emt 0:00:46]} 20. Bf3 {[%emt 0:00:30]} f5 {[%emt 0:01:07]} 21. exf5 {[%emt 0:00:41]} Bxf5 {[%emt 0:00:30]} 22. Qxd6 {[%emt 0:00:36]} Qxd6 {[%emt 0:01:14]} 23. Rxd6 {[%emt 0:00:30]} Rcd8 {[%emt 0:00:29]} 24. Bxc6 {[%emt 0:00:43]} bxc6 {[%emt 0:00:47]} 25. Rxd8 {[%emt 0:00:52]} Rxd8 {[%emt 0:00:29]} 26. Kf2 {[%emt 0:00:46]} Re8 {[%emt 0:01:00]} 27. Re1 {[%emt 0:00:37]} Re4 {[%emt 0:00:51]} 28. Rxe4 {[%emt 0:00:32]} Bxe4 {[%emt 0:00:29]} 29. Nc5 {[%emt 0:00:30]} Bb1 {[%emt 0:00:40]} 30. Nxa6 {[%emt 0:00:43]} Bxa2 {[%emt 0:00:30]} 31. c5 {[%emt 0:00:29]} f5 {[%emt 0:00:37]} 32. Nb4 {[%emt 0:00:29]} Bd5 {[%emt 0:00:56]} 33. Nxd5 {[%emt 0:00:30]} cxd5 {[%emt 0:00:28]} 34. Ke3 {[%emt 0:00:29]} Kf7 {[%emt 0:00:29]} 35. Kd4 {[%emt 0:00:29]} Ke6 {[%emt 0:00:30]} 36. b4 {[%emt 0:00:29]} h6 {[%emt 0:00:35]} 37. b5 {[%emt 0:00:33]} g5 {[%emt 0:00:31]} 38. g3 {[%emt 0:00:32]} 1-0

[Event "Catalan University-ch 2024"]
[Site "Barcelona"]
[Date "2024.02.24"]
[Round "2.9"]
[White "Marti Olivella, Gerard"]
[Black "Gomez Navais, Marcal"]
[Result "0-1"]
[ECO "B23"]
[WhiteElo "1869"]
[BlackElo "2081"]
[Annotator "NA"]
[PlyCount "91"]
[EventDate "2024.02.24"]
[EventCountry "ESP"]
[SourceTitle "playchess.com"]
[Source "ChessBase"]
[SourceQuality "1"]
[TimeControl "600+2"]

1. e4 {[%emt 0:00:02]} c5 {[%emt 0:00:10]} 2. Nc3 {[%emt 0:00:06]} Nc6 {[%emt 0:00:06]} 3. Bb5 {[%emt 0:00:03]} Nd4 {[%emt 0:00:07]} 4. f4 {[%emt 0:00:09]} g6 {[%emt 0:00:23]} 5. Nf3 {[%emt 0:00:06]} Bg7 {[%emt 0:00:05]} 6. O-O {[%emt 0:00:05]} a6 {[%emt 0:00:05]} 7. Bd3 {[%emt 0:00:05]} Nh6 {[%emt 0:00:02]} 8. Nxd4 {[%emt 0:00:18]} cxd4 {[%emt 0:00:02]} 9. Ne2 {[%emt 0:00:02]} d5 {[%emt 0:00:12]} 10. e5 {[%emt 0:00:27]} f6 {[%emt 0:00:12]} 11. Nxd4 {[%emt 0:01:19]} Qb6 {[%emt 0:00:15]} 12. c3 {[%emt 0:00:02]} fxe5 {[%emt 0:00:04]} 13. fxe5 {[%emt 0:00:03]} Bxe5 {[%emt 0:00:04]} 14. Kh1 {[%emt 0:01:25]} Bxd4 {[%emt 0:00:12]} 15. Qa4+ {[%emt 0:00:00]} Bd7 {[%emt 0:00:08]} 16. Qxd4 {[%emt 0:00:03]} Qxd4 {[%emt 0:00:04]} 17. cxd4 {[%emt 0:00:01]} Nf5 {[%emt 0:00:23]} 18. Rf4 {[%emt 0:00:25]} O-O {[%emt 0:00:21]} 19. b3 {[%emt 0:00:12]} g5 {[%emt 0:00:33]} 20. Rg4 {[%emt 0:00:35]} h6 {[%emt 0:00:02]} 21. Ba3 {[%emt 0:00:13]} Rf7 {[%emt 0:02:08]} 22. Re1 {[%emt 0:00:10]} Rg7 {[%emt 0:00:37]} 23. Bxf5 {[%emt 0:00:21]} Bxf5 {[%emt 0:00:02]} 24. Rg3 {[%emt 0:00:01]} Rc8 {[%emt 0:00:27]} 25. Rc3 {[%emt 0:00:17]} Re8 {[%emt 0:00:44]} 26. Kg1 {[%emt 0:00:26]} e6 {[%emt 0:00:09]} 27. Bd6 {[%emt 0:00:14]} Rf7 {[%emt 0:00:07]} 28. Rec1 {[%emt 0:00:17]} Rd8 {[%emt 0:00:32]} 29. Be5 {[%emt 0:00:17]} Kh7 {[%emt 0:00:00]} 30. Rc7 {[%emt 0:00:08]} Rdd7 {[%emt 0:00:01]} 31. Kf2 {[%emt 0:00:41]} Bb1+ {[%emt 0:00:35]} 32. Ke3 {[%emt 0:00:15]} Rxc7 {[%emt 0:00:02]} 33. Rxc7 {[%emt 0:00:32]} Rxc7 {[%emt 0:00:01]} 34. Bxc7 {[%emt 0:00:01]} Bxa2 {[%emt 0:00:02]} 35. b4 {[%emt 0:00:01]} Kg6 {[%emt 0:00:08]} 36. g3 {[%emt 0:00:48]} Kf5 {[%emt 0:00:01]} 37. Kf3 {[%emt 0:00:15]} Bb1 {[%emt 0:00:10]} 38. Ke3 {[%emt 0:00:04]} Kg4 {[%emt 0:00:09]} 39. Kf2 {[%emt 0:00:26]} h5 {[%emt 0:00:00]} 40. Be5 {[%emt 0:00:06]} Be4 {[%emt 0:00:04]} 41. Bf6 {[%emt 0:00:06]} b6 {[%emt 0:00:12]} 42. Bd8 {[%emt 0:00:19]} a5 {[%emt 0:01:45]} 43. b5 {[%emt 0:00:00]} a4 {[%emt 0:00:00]} 44. Bxb6 {[%emt 0:00:00]} Bd3 {[%emt 0:00:00]} 45. Bc5 {[%emt 0:00:02]} Bxb5 {[%emt 0:00:00]} 46. Kg2 {[%emt 0:00:06]} 0-1

[Event "Catalan University-ch 2024"]
[Site "Barcelona"]
[Date "2024.02.24"]
[Round "2.10"]
[White "Marabajan Navas, Saul"]
[Black "De la Vega Czarnecki, Marcel"]
[Result "1-0"]
[ECO "D35"]
[WhiteElo "2036"]
[BlackElo "1569"]
[Annotator "NA COMBH"]
[PlyCount "123"]
[EventDate "2024.02.24"]
[EventCountry "ESP"]
[SourceTitle "playchess.com"]
[Source "ChessBase"]
[SourceQuality "1"]
[TimeControl "600+2"]

1. d4 {[%emt 0:00:02]} d5 {[%emt 0:00:01]} 2. c4 {[%emt 0:00:01]} e6 {[%emt 0:00:01]} 3. Nc3 {[%emt 0:00:01]} Nf6 {[%emt 0:00:01]} 4. cxd5 {[%emt 0:00:02]} Nxd5 {[%emt 0:00:05]} 5. e4 {[%emt 0:00:06]} Nxc3 {[%emt 0:00:10]} 6. bxc3 {[%emt 0:00:01]} c5 {[%emt 0:00:00]} 7. Rb1 {[%emt 0:00:02]} Nc6 {[%emt 0:00:23]} 8. Nf3 {[%emt 0:00:14]} cxd4 {[%emt 0:00:06]} 9. cxd4 {[%emt 0:00:02]} Bb4+ {[%emt 0:00:01]} 10. Bd2 {[%emt 0:00:04]} Bxd2+ {[%emt 0:00:02]} 11. Qxd2 {[%emt 0:00:01]} O-O {[%emt 0:00:03]} 12. Bc4 {[%emt 0:00:34]} b6 {[%emt 0:00:53]} 13. O-O {[%emt 0:00:07]} Bb7 {[%emt 0:00:01]} 14. Rfe1 {[%emt 0:00:48]} Qd6 {[%emt 0:00:32]} 15. Rbd1 {[%emt 0:00:51]} Rfd8 {[%emt 0:00:42]} 16. Bb3 {[%emt 0:00:25]} Rac8 {[%emt 0:00:32]} 17. h4 {[%emt 0:00:44]} Na5 {[%emt 0:00:21]} 18. h5 {[%emt 0:01:57]} Nxb3 {[%emt 0:00:28]} 19. axb3 {[%emt 0:00:01]} h6 {[%emt 0:00:02]} 20. Ne5 {[%emt 0:00:24]} Rc7 {[%emt 0:01:46]} 21. Qe3 {[%emt 0:00:30]} Qe7 {[%emt 0:00:22]} 22. Qg3 {[%emt 0:00:32]} Rdc8 {[%emt 0:00:13]} 23. d5 {[%emt 0:00:14]} exd5 {[%emt 0:00:05]} 24. exd5 {[%emt 0:00:01]} Rc3 {[%emt 0:00:23]} 25. d6 {[%emt 0:00:44]} Qd8 {[%emt 0:02:08]} 26. Qf4 {[%emt 0:00:18]} Qf8 {[%emt 0:00:25]} 27. d7 {[%emt 0:00:59]} Rd8 {[%emt 0:00:01]} 28. Nc4 {[%emt 0:00:08]} Bc6 {[%emt 0:00:14]} 29. Ne5 {[%emt 0:00:10]} Rc5 {[%emt 0:00:08]} 30. b4 {[%emt 0:00:15]} Rxe5 {[%emt 0:00:24]} 31. Qxe5 {[%emt 0:00:01]} Rxd7 {[%emt 0:00:02]} 32. Rxd7 {[%emt 0:00:12]} Bxd7 {[%emt 0:00:01]} 33. Qc7 {[%emt 0:00:07]} Be6 {[%emt 0:00:12]} 34. b5 {[%emt 0:00:15]} Qb4 {[%emt 0:00:09]} 35. Ra1 {[%emt 0:00:08]} Qxb5 {[%emt 0:00:04]} 36. Rxa7 {[%emt 0:00:03]} Kh7 {[%emt 0:00:01]} 37. Qf4 {[%emt 0:00:03]} Qb1+ {[%emt 0:00:01]} 38. Kh2 {[%emt 0:00:00]} Qf5 {[%emt 0:00:05]} 39. Qxf5+ Bxf5 {[%emt 0:00:00]} 40. Rb7 {[%emt 0:00:05]} Bg4 {[%emt 0:00:04]} 41. Rxf7 {[%emt 0:00:03]} Bxh5 {[%emt 0:00:01]} 42. Rb7 {[%emt 0:00:01]} Bg6 {[%emt 0:00:03]} 43. Rxb6 {[%emt 0:00:01]} Bf5 {[%emt 0:00:01]} 44. Kg3 {[%emt 0:00:01]} h5 {[%emt 0:00:03]} 45. Kh4 {[%emt 0:00:00]} g6 {[%emt 0:00:01]} 46. Kg5 {[%emt 0:00:01]} Bd3 {[%emt 0:00:02]} 47. Rb7+ {[%emt 0:00:02]} Kg8 {[%emt 0:00:02]} 48. g3 {[%emt 0:00:05]} Be4 {[%emt 0:00:01]} 49. Ra7 {[%emt 0:00:02]} Bd3 {[%emt 0:00:03]} 50. Kf6 {[%emt 0:00:03]} Kh8 {[%emt 0:00:03]} 51. Rg7 {[%emt 0:00:02]} Bf5 {[%emt 0:00:02]} 52. Rxg6 {[%emt 0:00:04]} Bxg6 {[%emt 0:00:02]} 53. Kxg6 {[%emt 0:00:01]} h4 {[%emt 0:00:03]} 54. gxh4 {[%emt 0:00:01]} Kg8 {[%emt 0:00:01]} 55. h5 {[%emt 0:00:02]} Kh8 {[%emt 0:00:01]} 56. f4 {[%emt 0:00:01]} Kg8 {[%emt 0:00:01]} 57. h6 {[%emt 0:00:01]} Kh8 {[%emt 0:00:02]} 58. f5 {[%emt 0:00:01]} Kg8 {[%emt 0:00:01]} 59. f6 {[%emt 0:00:02]} Kh8 {[%emt 0:00:01]} 60. Kf7 {[%emt 0:00:04]} Kh7 {[%emt 0:00:02]} 61. Ke7 {[%emt 0:00:01]} Kxh6 {[%emt 0:00:04]} 62. f7 {[%emt 0:00:01]} 1-0

[Event "Catalan University-ch 2024"]
[Site "Barcelona"]
[Date "2024.02.24"]
[Round "3.1"]
[White "Marabajan Navas, Saul"]
[Black "Adan Bermudez, Sergio"]
[Result "0-1"]
[ECO "C41"]
[WhiteElo "2036"]
[BlackElo "2299"]
[Annotator "TA"]
[PlyCount "62"]
[EventDate "2024.02.24"]
[EventCountry "ESP"]
[SourceTitle "playchess.com"]
[Source "ChessBase"]
[SourceQuality "1"]
[TimeControl "600+2"]

{[%evp 9,62,0,25,10,-11,-66,-28,-100,-89,-136,-126,-167,-146,-148,-135,-152,-147,-144,-146,-150,-139,-147,-133,-143,-143,-166,-146,-155,-155,-158,-150,-184,-175,-194,-174,-135,-130,-152,-100,-116,-112,-184,-73,-112,-112,-287,-238,-289,-313,-468,-372,-986,-967,-29996,-1061]} 1. d4 {[%emt 0:00:02]} d6 {[%emt 0:00:10]} 2. e4 {[%emt 0:00:10]} Nf6 {[%emt 0:00:03]} 3. Nc3 {[%emt 0:00:01]} e5 {[%emt 0:00:02]} 4. Nf3 {[%emt 0:00:04]} Nbd7 {[%emt 0:00:02]} 5. Rg1 {[%emt 0:00:04]} g6 {[%emt 0:00:17]} 6. Bc4 {[%emt 0:00:22]} Bg7 {[%emt 0:00:33]} 7. h4 {[%emt 0:01:10]} (7. dxe5 $11 dxe5 8. h3) 7... O-O {[%emt 0:01:07]} (7... exd4 {with more complications.} 8. Qxd4 O-O 9. Bg5 Nb6) 8. Be3 {[%emt 0:00:21]} (8. dxe5 $1 $11 dxe5 9. g4) 8... exd4 $17 {[%emt 0:00:19]} 9. Nxd4 {[%emt 0:00:53]} ({White should play} 9. Bxd4 Nb6 10. Qe2) 9... Re8 {[%emt 0:00:08]} 10. f3 {[%emt 0:00:46]} Nb6 {[%emt 0:00:05]} 11. Bb3 {[%emt 0:01:19][%cal Oh4h5]} d5 {[%emt 0:00:01] Strongly threatening ...c5.} 12. Qd2 {[%emt 0:00:16]} c5 {[%emt 0:00:14]} 13. Nde2 {[%emt 0:00:30]} d4 {[%emt 0:00:01]} ({Much less strong is} 13... dxe4 14. Qxd8 Rxd8 15. Bxc5 $15) 14. O-O-O {[%emt 0:00:02]} Qe7 {[%emt 0:00:52]} 15. Nxd4 {[%emt 0:00:20]} cxd4 {[%emt 0:00:03]} 16. Bxd4 {[%emt 0:00:03]} Be6 {[%emt 0:00:10]} 17. g4 {[%emt 0:00:18][%cal Oh4h5]} Red8 {[%emt 0:00:42][%cal Of6e4] [#] Hoping for ...Nxe4!} 18. Qe3 {[%emt 0:00:16]} Nfd7 {[%emt 0:00:29]} 19. Bxg7 {[%emt 0:00:14]} Kxg7 {[%emt 0:00:02]} 20. h5 {[%emt 0:00:26]} Qc5 {[%emt 0:00:02]} 21. Qf4 {[%emt 0:00:25]} Qe5 {[%emt 0:00:31] Prevents g5.} 22. Qe3 {[%emt 0:00:10]} Bxb3 {[%emt 0:00:06]} 23. axb3 {[%emt 0:00:01]} Nf6 {[%emt 0:00:27]} (23... g5 $142 24. Rgf1 Nf8) 24. h6+ {[%emt 0:00:19]} Kg8 {[%emt 0:00:03]} 25. f4 {[%emt 0:00:26]} (25. Kb1 $17) 25... Qe7 {[%emt 0:00:03]} (25... Rxd1+ $19 {has better winning chances.} 26. Rxd1 Nxg4) 26. Rxd8+ {[%emt 0:00:12]} Rxd8 {[%emt 0:00:02]} 27. e5 $2 {[%emt 0:00:05] This costs White the game.} (27. g5 $17 Ne8 28. Qf3) 27... Nfd5 $19 {[%emt 0:00:14]} 28. Nxd5 {[%emt 0:00:01]} Nxd5 {[%emt 0:00:04]} 29. Qg3 {[%emt 0:00:19]} (29. Qf3 {is a better defense.} g5 30. Rd1 Nxf4 31. Rxd8+ Qxd8 32. Qxb7) 29... Qc5 {[%emt 0:00:29] [#] ...Qa5 is the strong threat.} 30. Re1 $2 {[%emt 0:00:06]} (30. Rd1 Qa5 31. Rd4) 30... Nb4 {[%emt 0:00:08]} 31. Qc3 {[%emt 0:00:52]} Na2+ {[%emt 0:00:05] Weighted Error Value: White=0.63/Black=0.17 (very precise) .  Loses game:     	White=1     	---        Mistake:       	White=6     	Black=2      Inaccurate:     	White=3     	Black=1      OK:         	White=6     	Black=12} (31... Qa5 $142 32. Qd4 Rxd4 (32... Qa1+ {is a self mate.} 33. Kd2 Rxd4+ 34. Kc3 Qxe1+ 35. Kxd4 Qd2+ 36. Kc4 b6 37. g5 Qxc2+ 38. Kxb4 Qc5+ 39. Ka4 Qa5#) 33. Kb1 Qa2+ 34. Kc1 Qa1#) 0-1